Workbook

Sheet Sheet1
A1: Synthesize y=sinx | I1: =PI()/180 -> 0.01745329252
A2: 0<x<90 | D2: referansda olduğu gibi initial crank angle 94.5 derece alınınca | L2: Optimal Synthesis of Function Generators Without the Branch Defec
D3: Bu sayfada önce K!, K2, K3 e göre sonuç elde edildi, sonra initial crannk angle a göre maximum error minimize edildi | L3: Tinunu&Gupta
B4: qin | C4: 85.41530303 | D4: =C4*D_R -> 1.49077827 | L4: Transactions of the ASME | N4: Vol. 106, SEPTEMBER 1984
B5: fin | C5: 72.94011045 | D5: =C5*D_R -> 1.273045084 | L5: assuming initial crank angles Least squares formulation with 3 design variables is performed.
L6: In the resulting error curve max error is tried to be minized uzing the initial crank angles as the two design variables.
B7: Dq | C7: 120 | D7: =C7/90 -> 1.333333333
B8: Df | C8: 60 | D8: =C8*D_R -> 1.047197551
B10: y=sin(X)
B11: x | C11: y(required) | D11: q | E11: f | G11: q | H11: f | J11: cosf | K11: cosq | L11: cos(f-q) | M11: cos2f | N11: cos2q | O11: cosfcosq | P11: cosq*cos(f-q) | Q11: cosf*cos(f-q)
B12: 0 | C12: =SIN(B12*D_R) -> 0 | D12: =B12*$D$7 -> 0 | E12: 0 | G12: =D12*D_R+$D$4 -> 1.49077827 | H12: =E12*D_R+$D$5 -> 1.273045084 | J12: =COS(H12) -> 0.2933711414 | K12: =COS(G12) -> 0.07993269349 | L12: =COS(H12-G12) -> 0.9763896277 | M12: =J12^2 -> 0.08606662658 | N12: =K12^2 -> 0.006389235488 | O12: =J12*K12 -> 0.02344994552 | P12: =L12*K12 -> 0.07804545284 | Q12: =J12*L12 -> 0.2864445395
B13: 10 | C13: 0.1736481777 | D13: =B13*$D$7 -> 13.33333333 | E13: =C13*60 -> 10.41889066 | G13: 1.723488836 | H13: 1.454889031 | J13: =COS(H13) -> 0.1156479444 | K13: =COS(G13) -> -0.1520998632 | L13: =COS(H13-G13) -> 0.9641434273 | M13: =J13^2 -> 0.01337444705 | N13: =K13^2 -> 0.0231343684 | O13: =J13*K13 -> -0.01759003653 | P13: =L13*K13 -> -0.1466460834 | Q13: =J13*L13 -> 0.1115012055
B14: =B13+10 -> 20 | C14: 0.3420201433 | D14: 26.66666667 | E14: =C14*60 -> 20.5212086 | G14: 1.956199403 | H14: 1.631207741 | J14: -0.06037467492 | K14: -0.375932677 | L14: 0.9476533885 | M14: 0.003645101372 | N14: 0.1413253776 | O14: 0.02269681317 | P14: -0.3562538752 | Q14: -0.05721426527
B15: =B14+10 -> 30 | C15: 0.5 | D15: 40 | E15: 30 | G15: 2.18890997 | H15: 1.79664386 | J15: -0.223932452 | K15: -0.5794988628 | L15: 0.9240451368 | M15: 0.05014574305 | N15: 0.335818932 | O15: 0.1297686013 | P15: -0.5354831059 | Q15: -0.2069236932
B16: 40 | C16: 0.6427876097 | D16: 53.33333333 | E16: 38.56725658 | G16: 2.421620537 | H16: 1.946170695 | J16: -0.3666208558 | K16: -0.7518241149 | L16: 0.8890869015 | M16: 0.1344108519 | N16: 0.5652394997 | O16: 0.2756344004 | P16: -0.6684369728 | Q16: -0.3259578007
B17: 50 | C17: 0.7660444431 | D17: 66.66666667 | E17: 45.96266659 | G17: 2.654331104 | H17: 2.075244949 | J17: -0.4833248151 | K17: -0.8836183344 | L17: 0.8369631094 | M17: 0.2336028769 | N17: 0.7807813609 | O17: 0.4270746681 | P17: -0.7395559487 | Q17: -0.4045250401
B18: 60 | C18: 0.8660254038 | D18: 80 | E18: 51.96152423 | G18: 2.887041671 | H18: 2.179944766 | J18: -0.5721692725 | K18: -0.9677764607 | L18: 0.760251013 | M18: 0.3273776764 | N18: 0.936591278 | O18: 0.5537319535 | P18: -0.7357530347 | Q18: -0.4349922691
B19: 70 | C19: 0.9396926208 | D19: 93.33333333 | E19: 56.38155725 | G19: 3.119752238 | H19: 2.257088895 | J19: -0.6336734725 | K19: -0.9997615076 | L19: 0.6504167622 | M19: 0.4015420698 | N19: 0.9995230721 | O19: 0.6335223462 | P19: -0.6502616427 | Q19: -0.4121518483
B20: 80 | C20: 0.984807753 | D20: 106.6666667 | E20: 59.08846518 | G20: 3.352462805 | H20: 2.304333351 | J20: -0.6695011583 | K20: -0.9778491528 | L20: 0.4991927319 | M20: 0.448231801 | N20: 0.9561889657 | O20: 0.6546711404 | P20: -0.48813519 | Q20: -0.3342101122
B21: 90 | C21: 1 | D21: 120 | E21: 60 | G21: 3.585173372 | H21: 2.320242635 | J21: -0.6812335256 | K21: -0.9032206971 | L21: 0.3011187032 | M21: 0.4640791165 | N21: 0.8158076276 | O21: 0.6153042199 | P21: -0.271976645 | Q21: -0.2051321558
J22: 1 | K22: 1 | L22: 1 | M22: 1 | N22: 1 | O22: 1 | P22: 1 | Q22: 1
J24: =SUM(J12:J22) -> -2.281811141 | K24: =SUM(K12:K22) -> -5.511648977 | L24: 8.749260801 | M24: =SUM(M12:M22) -> 3.16247631 | N24: 6.560799717 | O24: 4.318264052 | P24: -3.514457046 | Q24: -0.9831614397
C26: =M24 -> 3.16247631 | D26: =-O24 -> -4.318264052 | E26: =J24 -> -2.281811141 | G26: =Q24 -> -0.9831614397 | M26: =M27/D_R -> 274.8431062
C27: =O24 -> 4.318264052 | D27: =-N24 -> -6.560799717 | E27: =K24 -> -5.511648977 | G27: =P24 -> -3.514457046 | K27: 79 | L27: =K27*D_R -> 1.378810109 | M27: =FourBar(ABS(F31),F32,ABS(F33),F30,-1,L27+PI()) -> 4.79691713
C28: =J24 -> -2.281811141 | D28: =-K24 -> 5.511648977 | E28: 11 | G28: =L24 -> 8.749260801
B30: K1 | C30: =MMULT(MINVERSE(C26:E28),G26:G28) -> 2.93426907 | E30: a1 | F30: 1
B31: K2 | C31: 2.223318697 | E31: a2 | F31: =F30/C30 -> 0.3408003752 | G31: =-F31 -> -0.3408003752
B32: K3 | C32: 0.2900505848 | E32: a3 | F32: =SQRT(F30^2+F31^2+F33^2-2*C32*F31*F33) -> 1.108839336
E33: a4 | F33: =F30/C31 -> 0.4497780733 | G33: =-F33 -> -0.4497780733
I34: =MIN(J37:J55) -> -0.001025869943
F35: Generated by Four-Bar | I35: =MAX(J37:J55) -> 0.001025433095 | J35: =MAX(-I34,I35) -> 0.001025869943
B36: x | C36: q | F36: f | H36: ygen | I36: yactual | J36: e
B37: 0 | C37: =B37*$D$7+$C$4 -> 85.41530303 | D37: =C37*D_R+PI() -> 4.632370923 | E37: =FourBar($G$31,$F$32,$G$33,$F$30,-1,D37) -> 4.413570284 | F37: =E37-PI()-$D$5 -> -0.001067453708 | H37: =F37/$D$8 -> -0.001019343205 | I37: =SIN(B37*D_R) -> 0 | J37: =I37-H37 -> 0.001019343205
B38: 5 | C38: =B38*$D$7+$C$4 -> 92.0819697 | D38: 4.748726207 | E38: =FourBar($G$31,$F$32,$G$33,$F$30,-1,D38) -> 4.506464694 | F38: =E38-PI()-$D$5 -> 0.09182695603 | H38: =F38/$D$8 -> 0.08768828377 | I38: 0.08715574275 | J38: =I38-H38 -> -0.0005325410221
B39: 10 | C39: 98.74863637 | D39: 4.86508149 | E39: 4.597555966 | F39: 0.1829182279 | H39: 0.1746740409 | I39: 0.1736481777 | J39: -0.00102586323
B40: 15 | C40: 105.415303 | D40: 4.981436773 | E40: 4.686554335 | F40: 0.2719165972 | H40: 0.2596612233 | I40: 0.2588190451 | J40: -0.0008421781911
B41: 20 | C41: 112.0819697 | D41: 5.097792057 | E41: 4.773126685 | F41: 0.3584889477 | H41: 0.3423317284 | I41: 0.3420201433 | J41: -0.0003115850994
B42: 25 | C42: 118.7486364 | D42: 5.21414734 | E42: 4.856891601 | F42: 0.4422538632 | H42: 0.4223213306 | I42: 0.4226182617 | J42: 0.0002969311734
B43: 30 | C43: 125.415303 | D43: 5.330502624 | E43: 4.9374156 | F43: 0.5227778622 | H43: 0.4992160855 | I43: 0.5 | J43: 0.0007839145255
B44: 35 | C44: 132.0819697 | D44: 5.446857907 | E44: 5.014211746 | F44: 0.5995740085 | H44: 0.5725510033 | I44: 0.5735764364 | J44: 0.001025433095
B45: 40 | C45: 138.7486364 | D45: 5.563213191 | E45: 5.08674226 | F45: 0.6721045225 | H45: 0.6418125422 | I45: 0.6427876097 | J45: 0.0009750675214
B46: 45 | C46: 145.415303 | D46: 5.679568474 | E46: 5.154427086 | F46: 0.7397893479 | H46: 0.7064467894 | I46: 0.7071067812 | J46: 0.0006599917837
B47: 50 | C47: 152.0819697 | D47: 5.795923758 | E47: 5.216660332 | F47: 0.8020225948 | H47: 0.7658751626 | I47: 0.7660444431 | J47: 0.0001692805441
B48: 55 | C48: 158.7486364 | D48: 5.912279041 | E48: 5.272835767 | F48: 0.8581980292 | H48: =F48/$D$8 -> 0.819518751 | I48: 0.8191520443 | J48: -0.000366706751
B49: 60 | C49: 165.415303 | D49: 6.028634325 | E49: 5.322380755 | F49: 0.9077430173 | H49: 0.8668307296 | I49: 0.8660254038 | J49: -0.0008053257862
B50: 65 | C50: 172.0819697 | D50: 6.144989608 | E50: 5.364795321 | F50: 0.9501575837 | H50: 0.907333657 | I50: 0.906307787 | J50: -0.001025869943
B51: 70 | C51: 178.7486364 | D51: 6.261344892 | E51: 5.399689983 | F51: 0.9850522454 | H51: 0.9406556043 | I51: 0.9396926208 | J51: -0.0009629835364
B52: 75 | C52: 185.415303 | D52: 6.377700175 | E52: 5.42681416 | F52: 1.012176422 | H52: 0.9665572849 | I52: 0.9659258263 | J52: -0.0006314586285
B53: 80 | C53: 192.0819697 | D53: 6.494055459 | E53: 5.446067708 | F53: 1.03142997 | H53: 0.9849430693 | I53: 0.984807753 | J53: -0.0001353163047
B54: 85 | C54: 198.7486364 | D54: 6.610410742 | E54: 5.457491857 | F54: 1.04285412 | H54: 0.9958523284 | I54: 0.9961946981 | J54: 0.0003423697391
B55: 90 | C55: 205.415303 | D55: 6.726766025 | E55: 5.461241185 | F55: 1.046603447 | H55: 0.9994326722 | I55: 1 | J55: 0.0005673277671
F64: Generated by Four-Bar
B65: x | C65: y(required) | D65: q | E65: fg | F65: freqired | G65: y (generated) | H65: e
B66: 1 | C66: 0 | D66: 30 | E66: 31.25002124 | F66: 30 | G66: 0.01444081163 | H66: -0.01444081163
B67: 1.1 | C67: 0.0953101798 | D67: 39 | E67: 38.00078726 | F67: 38.25021142 | G67: 0.09242871891 | H67: 0.002881460895
B68: 1.2 | C68: 0.1823215568 | D68: 48 | E68: 44.86368623 | F68: 45.78206435 | G68: 0.1717120367 | H68: 0.01060952008
B69: 1.3 | C69: 0.2623642645 | D69: 57 | E69: 51.74521066 | F69: 52.7106974 | G69: 0.2512105243 | H69: 0.01115374014
B70: 1.4 | C70: 0.3364722366 | D70: 66 | E70: 58.55671384 | F70: 59.12560963 | G70: 0.3299000947 | H70: 0.006572141875
B71: 1.5 | C71: 0.4054651081 | D71: 75 | E71: 65.20142848 | F71: 65.09775004 | G71: 0.4066628484 | H71: -0.001197740268
B72: 1.6 | C72: 0.4700036292 | D72: 84 | E72: 71.55500197 | F72: 70.68431431 | G72: 0.4800622075 | H72: -0.01005857828
B73: 1.7 | C73: 0.5306282511 | D73: 93 | E73: 77.42935908 | F73: 75.93208478 | G73: 0.547925442 | H73: -0.01729719098
B74: 1.8 | C74: 0.5877866649 | D74: 102 | E74: 82.48529441 | F74: 80.87981439 | G74: 0.6063338974 | H74: -0.01854723246
B75: 1.9 | C75: 0.6418538862 | D75: 111 | E75: 85.93175883 | F75: 85.55996511 | G75: 0.6461490156 | H75: -0.004295129387
B76: 2 | C76: 0.6931471806 | D76: 120 | E76: 83.94243616 | F76: 90 | G76: 0.623167459 | H76: 0.06997972156
B83: qin | C83: 28
B84: fin | C84: 14
B87: x | C87: y(required) | D87: q | E87: fg | F87: freqired | G87: y (generated) | H87: e
B88: 1 | C88: 0 | D88: 28 | E88: 13.84887412 | F88: 14 | G88: -0.001745874663 | H88: 0.001745874663
B89: 1.1 | C89: 0.0953101798 | D89: 37 | E89: 22.4425745 | F89: 22.25021142 | G89: 0.09753244518 | H89: -0.00222226538
B90: 1.2 | C90: 0.1823215568 | D90: 46 | E90: 29.74673753 | F90: 29.78206435 | G90: 0.1819134453 | H90: 0.0004081114795
B91: 1.3 | C91: 0.2623642645 | D91: 55 | E91: 36.52276731 | F91: 36.7106974 | G91: 0.2601932109 | H91: 0.002171053526
B92: 1.4 | C92: 0.3364722366 | D92: 64 | E92: 42.93747896 | F92: 43.12560963 | G92: 0.3342988659 | H92: 0.002173370765
B93: 1.5 | C93: 0.4054651081 | D93: 73 | E93: 49.03115155 | F93: 49.09775004 | G93: 0.4046957321 | H93: 0.000769375976
B94: 1.6 | C94: 0.4700036292 | D94: 82 | E94: 54.7954243 | F94: 54.68431431 | G94: 0.4712872222 | H94: -0.001283592953
B95: 1.7 | C95: 0.5306282511 | D95: 91 | E95: 60.1949678 | F95: 59.93208478 | G95: 0.5336651947 | H95: -0.003036943672
B96: 1.8 | C96: 0.5877866649 | D96: 100 | E96: 65.17450984 | F96: 64.87981439 | G96: 0.5911911202 | H96: -0.003404455299
B97: 1.9 | C97: 0.6418538862 | D97: 109 | E97: 69.66097135 | F97: 69.55996511 | G97: 0.643020756 | H97: -0.00116686984
B98: 2 | C98: 0.6931471806 | D98: 118 | E98: 73.56412432 | F98: 74 | G98: 0.6881117473 | H98: 0.005035433298

Sheet Sheet1 (2)
A1: Synthesize y=sinx | I1: =PI()/180 -> 0.01745329252
A2: 0<x<90 | D2: Bu sayfada K1, k2, k3 çözüldükten sonra delta1, delta2 ve delra bulundu ve delta sıfır olması için krank açıları değiştirildi | L2: Optimal Synthesis of Function Generators Without the Branch Defect
L3: Tinunu&Gupta
B4: qin | C4: 87.45171638 | D4: =C4*D_R -> 1.526320387 | L4: Transactions of the ASME | N4: Vol. 106, SEPTEMBER 1984
B5: fin | C5: 74.98125902 | D5: =C5*D_R -> 1.308669847
B7: Dq | C7: 120 | D7: =C7/90 -> 1.333333333
B8: Df | C8: 60 | D8: =C8*D_R -> 1.047197551
B10: y=sin(X)
B11: x | C11: y(required) | D11: q | E11: f | G11: q | H11: f | J11: cosf | K11: cosq | L11: cos(f-q) | M11: cos2f | N11: cos2q | O11: cosfcosq | P11: cosq*cos(f-q) | Q11: cosf*cos(f-q)
B12: 0 | C12: =SIN(B12*D_R) -> 0 | D12: =B12*$D$7 -> 0 | E12: 0 | G12: =D12*D_R+$D$4 -> 1.526320387 | H12: =E12*D_R+$D$5 -> 1.308669847 | J12: =COS(H12) -> 0.2591349776 | K12: =COS(G12) -> 0.04446127781 | L12: =COS(H12-G12) -> 0.9764074771 | M12: =J12^2 -> 0.06715093661 | N12: =K12^2 -> 0.001976805224 | O12: =J12*K12 -> 0.01152147223 | P12: =L12*K12 -> 0.0434123241 | Q12: =J12*L12 -> 0.2530213297 | S12: =(-SIN(G12)*$C$31-SIN(H12-G12))*($C$30*COS(H12)-$C$31*COS(G12)+$C$32-COS(H12-G12)) -> 0.006545278781 | T12: =(-SIN(H12)*$C$30+SIN(H12-G12))*($C$30*COS(H12)-$C$31*COS(G12)+$C$32-COS(H12-G12)) -> 0.01004994212
B13: 10 | C13: 0.1736481777 | D13: =B13*$D$7 -> 13.33333333 | E13: =C13*60 -> 10.41889066 | G13: 1.759030954 | H13: 1.490513794 | J13: =COS(H13) -> 0.08019632025 | K13: =COS(G13) -> -0.1871249983 | L13: =COS(H13-G13) -> 0.9641653565 | M13: =J13^2 -> 0.006431449781 | N13: 0.035015765 | O13: =J13*K13 -> -0.01500673629 | P13: =L13*K13 -> -0.1804194407 | Q13: =J13*L13 -> 0.0773225137 | S13: =(-SIN(G13)*$C$31-SIN(H13-G13))*($C$30*COS(H13)-$C$31*COS(G13)+$C$32-COS(H13-G13)) -> -0.006228809961 | T13: =(-SIN(H13)*$C$30+SIN(H13-G13))*($C$30*COS(H13)-$C$31*COS(G13)+$C$32-COS(H13-G13)) -> -0.0105001443
B14: =B13+10 -> 20 | C14: 0.3420201433 | D14: 26.66666667 | E14: =C14*60 -> 20.5212086 | G14: 1.991741521 | H14: 1.666832504 | J14: -0.09588862233 | K14: -0.4086233174 | L14: 0.947679774 | M14: 0.009194627892 | N14: 0.1669730155 | O14: 0.03918232696 | P14: -0.3872440531 | Q14: -0.09087170794 | S14: -0.003425153734 | T14: -0.006622960893
B15: =B14+10 -> 30 | C15: 0.5 | D15: 40 | E15: 30 | G15: 2.224452088 | H15: 1.832268623 | J15: -0.2585030849 | K15: -0.6080926476 | L15: 0.9240767275 | M15: 0.06682384491 | N15: 0.3697766681 | O15: 0.1571938253 | P15: -0.5619242639 | Q15: -0.2388766848 | S15: 0.001145837467 | T15: 0.002751005729
B16: 40 | C16: 0.6427876097 | D16: 53.33333333 | E16: 38.56725658 | G16: 2.457162655 | H16: 1.981795458 | J16: -0.399525453 | K16: -0.7747795459 | L16: 0.8891247283 | M16: 0.1596205876 | N16: 0.6002833447 | O16: 0.309544149 | P16: -0.6888756532 | Q16: -0.3552279598 | S16: 0.001602328404 | T16: 0.00562440484
B17: 50 | C17: 0.7660444431 | D17: 66.66666667 | E17: 45.96266659 | G17: 2.689873222 | H17: 2.110869712 | J17: -0.5141989336 | K17: -0.8996978782 | L17: 0.837008335 | M17: 0.2644005433 | N17: 0.809456272 | O17: 0.4626236895 | P17: -0.753054623 | Q17: -0.4303887932 | S17: 0.0001941795805 | T17: 0.001627807981
B18: 60 | C18: 0.8660254038 | D18: 80 | E18: 51.96152423 | G18: 2.922583789 | H18: 2.215569529 | J18: -0.6010171893 | K18: -0.9761132651 | L18: 0.7603046993 | M18: 0.3612216618 | N18: 0.9527971062 | O18: 0.586660851 | P18: -0.7421435024 | Q18: -0.4569561934 | S18: 0.0002024841642 | T18: -0.002666537612
B19: 70 | C19: 0.9396926208 | D19: 93.33333333 | E19: 56.38155725 | G19: 3.155294356 | H19: 2.292713659 | J19: -0.6608249202 | K19: -0.9999061331 | L19: 0.6504795355 | M19: 0.4366895751 | N19: 0.9998122751 | O19: 0.6607628906 | P19: -0.650418477 | Q19: -0.4298530871 | S19: 0.0005034104694 | T19: -0.001755933919
B20: 80 | C20: 0.984807753 | D20: 106.6666667 | E20: 59.08846518 | G20: 3.388004923 | H20: 2.339958115 | J20: -0.6955332327 | K20: -0.9697938028 | L20: 0.4992643416 | M20: 0.4837664778 | N20: 0.9405000199 | O20: 0.6745238187 | P20: -0.4841834644 | Q20: -0.3472549415 | S20: -0.001275334573 | T20: 0.002595734422
B21: 90 | C21: 1 | D21: 120 | E21: 60 | G21: 3.62071549 | H21: 2.355867398 | J21: -0.7068754546 | K21: -0.8873996375 | L21: 0.3011975116 | M21: 0.4996729083 | N21: 0.7874781166 | O21: 0.6272810221 | P21: -0.2672825626 | Q21: -0.2129091279 | S21: 0.0007387007211 | T21: -0.00110653651
J22: 1 | K22: 1 | L22: 1 | M22: 1 | N22: 1 | O22: 1 | P22: 1 | Q22: 1 | S22: 0 | T22: 0
J24: =SUM(J12:J22) -> -2.593035593 | K24: =SUM(K12:K22) -> -5.667069948 | L24: 8.749708487 | M24: =SUM(M12:M22) -> 3.354972613 | N24: 6.664069388 | O24: 4.514287309 | P24: -3.672133716 | Q24: -1.231994652 | S24: =SUM(S12:S22) -> 2.921318944e-06 | T24: =SUM(T12:T22) -> -3.218145182e-06
C26: =M24 -> 3.354972613 | D26: =-O24 -> -4.514287309 | E26: =J24 -> -2.593035593 | G26: =Q24 -> -1.231994652 | M26: =M27/D_R -> 271.2836594
C27: =O24 -> 4.514287309 | D27: =-N24 -> -6.664069388 | E27: =K24 -> -5.667069948 | G27: =P24 -> -3.672133716 | K27: 75 | L27: =K27*D_R -> 1.308996939 | M27: =FourBar(ABS(F31),F32,ABS(F33),F30,-1,L27+PI()) -> 4.734793063
C28: =J24 -> -2.593035593 | D28: =-K24 -> 5.667069948 | E28: 11 | G28: =L24 -> 8.749708487
B30: K1 | C30: =MMULT(MINVERSE(C26:E28),G26:G28) -> 2.646699738 | E30: a1 | F30: 1 | I30: d1 | J30: =S24 -> 2.921318944e-06
B31: K2 | C31: 2.023420432 | E31: a2 | F31: =F30/C30 -> 0.377829032 | G31: =-F31 -> -0.377829032 | I31: d2 | J31: =T24 -> -3.218145182e-06
B32: K3 | C32: 0.3768936353 | E32: a3 | F32: =SQRT(F30^2+F31^2+F33^2-2*C32*F31*F33) -> 1.116354704 | I32: d | J32: =SQRT(J30^2+J31^2) -> 4.346327506e-06
E33: a4 | F33: =F30/C31 -> 0.494212663 | G33: =-F33 -> -0.494212663
I34: =MIN(J37:J55) -> -0.001189597513 | K34: =SQRT(SUM(L37:L47)) -> 0
F35: Generated by Four-Bar | I35: =MAX(J37:J55) -> 0.001248669588 | J35: =MAX(-I34,I35) -> 0.001248669588
B36: x | C36: q | F36: f | H36: ygen | I36: yactual | J36: e
B37: 0 | C37: =B37*$D$7+$C$4 -> 87.45171638 | D37: =C37*D_R+PI() -> 4.667913041 | E37: =FourBar($G$31,$F$32,$G$33,$F$30,-1,D37) -> 4.448954897 | F37: =E37-PI()-$D$5 -> -0.001307603735 | H37: =F37/$D$8 -> -0.001248669588 | I37: =SIN(B37*D_R) -> 0 | J37: =I37-H37 -> 0.001248669588
B38: 5 | C38: =B38*$D$7+$C$4 -> 94.11838305 | D38: 4.784268324 | E38: =FourBar($G$31,$F$32,$G$33,$F$30,-1,D38) -> 4.542071549 | F38: =E38-PI()-$D$5 -> 0.09180904766 | H38: =F38/$D$8 -> 0.08767118253 | I38: 0.08715574275 | J38: =I38-H38 -> -0.0005154397819
B39: 10 | C39: 100.7850497 | D39: 4.900623608 | E39: 4.633352191 | F39: 0.18308969 | H39: 0.1748377752 | I39: 0.1736481777 | J39: -0.001189597513
B40: 15 | C40: 107.4517164 | D40: 5.016978891 | E40: 4.72250257 | F40: 0.2722400695 | H40: 0.2599701166 | I40: 0.2588190451 | J40: -0.001151071479
B41: 20 | C41: 114.118383 | D41: 5.133334175 | E41: 4.809184397 | F41: 0.358921896 | H41: 0.3427451636 | I41: 0.3420201433 | J41: -0.0007250202292
B42: 25 | C42: 120.7850497 | D42: 5.249689458 | E42: 4.893010729 | F42: 0.4427482279 | H42: 0.4227934141 | I42: 0.4226182617 | J42: -0.0001751523789
B43: 30 | C43: 127.4517164 | D43: 5.366044742 | E43: 4.973542805 | F43: 0.5232803043 | H43: 0.4996958823 | I43: 0.5 | J43: 0.0003041176744
B44: 35 | C44: 134.118383 | D44: 5.482400025 | E44: 5.050289629 | F44: 0.6000271282 | H44: 0.5729837007 | I44: 0.5735764364 | J44: 0.0005927356693
B45: 40 | C45: 140.7850497 | D45: 5.598755309 | E45: 5.122712027 | F45: 0.6724495261 | H45: 0.6421419963 | I45: 0.6427876097 | J45: 0.0006456133757
B46: 45 | C46: 147.4517164 | D46: 5.715110592 | E46: 5.190233162 | F46: 0.7399706607 | H46: 0.7066199304 | I46: 0.7071067812 | J46: 0.0004868508106
B47: 50 | C47: 154.118383 | D47: 5.831465876 | E47: 5.252257279 | F47: 0.8019947785 | H47: 0.7658486 | I47: 0.7660444431 | J47: 0.0001958430997
B48: 55 | C48: 160.7850497 | D48: 5.947821159 | E48: 5.308197457 | F48: 0.8579349558 | H48: =F48/$D$8 -> 0.8192675344 | I48: 0.8191520443 | J48: -0.0001154901014
B49: 60 | C49: 167.4517164 | D49: 6.064176443 | E49: 5.357511044 | F49: 0.9072485427 | H49: 0.8663585411 | I49: 0.8660254038 | J49: -0.0003331372779
B50: 65 | C50: 174.118383 | D50: 6.180531726 | E50: 5.399738588 | F50: 0.9494760874 | H50: 0.9066828759 | I50: 0.906307787 | J50: -0.000375088862
B51: 70 | C51: 180.7850497 | D51: 6.29688701 | E51: 5.434539206 | F51: 0.9842767053 | H51: 0.9399150181 | I51: 0.9396926208 | J51: -0.0002223973605
B52: 75 | C52: 187.4517164 | D52: 6.413242293 | E52: 5.461714156 | F52: 1.011451655 | H52: 0.965865184 | I52: 0.9659258263 | J52: 6.064233627e-05
B53: 80 | C53: 194.118383 | D53: 6.529597576 | E53: 5.48121205 | F53: 1.030949549 | H53: 0.984484301 | I53: 0.984807753 | J53: 0.000323452023
B54: 85 | C54: 200.7850497 | D54: 6.64595286 | E54: 5.493113534 | F54: 1.042851034 | H54: 0.9958493814 | I54: 0.9961946981 | J54: 0.0003453166838
B55: 90 | C55: 207.4517164 | D55: 6.762308143 | E55: 5.497598646 | F55: 1.047336145 | H55: 1.000132348 | I55: 1 | J55: -0.0001323477046
F64: Generated by Four-Bar
B65: x | C65: y(required) | D65: q | E65: fg | F65: freqired | G65: y (generated) | H65: e
B66: 1 | C66: 0 | D66: 30 | E66: 31.25002124 | F66: 30 | G66: 0.01444081163 | H66: -0.01444081163
B67: 1.1 | C67: 0.0953101798 | D67: 39 | E67: 38.00078726 | F67: 38.25021142 | G67: 0.09242871891 | H67: 0.002881460895
B68: 1.2 | C68: 0.1823215568 | D68: 48 | E68: 44.86368623 | F68: 45.78206435 | G68: 0.1717120367 | H68: 0.01060952008
B69: 1.3 | C69: 0.2623642645 | D69: 57 | E69: 51.74521066 | F69: 52.7106974 | G69: 0.2512105243 | H69: 0.01115374014
B70: 1.4 | C70: 0.3364722366 | D70: 66 | E70: 58.55671384 | F70: 59.12560963 | G70: 0.3299000947 | H70: 0.006572141875
B71: 1.5 | C71: 0.4054651081 | D71: 75 | E71: 65.20142848 | F71: 65.09775004 | G71: 0.4066628484 | H71: -0.001197740268
B72: 1.6 | C72: 0.4700036292 | D72: 84 | E72: 71.55500197 | F72: 70.68431431 | G72: 0.4800622075 | H72: -0.01005857828
B73: 1.7 | C73: 0.5306282511 | D73: 93 | E73: 77.42935908 | F73: 75.93208478 | G73: 0.547925442 | H73: -0.01729719098
B74: 1.8 | C74: 0.5877866649 | D74: 102 | E74: 82.48529441 | F74: 80.87981439 | G74: 0.6063338974 | H74: -0.01854723246
B75: 1.9 | C75: 0.6418538862 | D75: 111 | E75: 85.93175883 | F75: 85.55996511 | G75: 0.6461490156 | H75: -0.004295129387
B76: 2 | C76: 0.6931471806 | D76: 120 | E76: 83.94243616 | F76: 90 | G76: 0.623167459 | H76: 0.06997972156
B83: qin | C83: 28
B84: fin | C84: 14
B87: x | C87: y(required) | D87: q | E87: fg | F87: freqired | G87: y (generated) | H87: e
B88: 1 | C88: 0 | D88: 28 | E88: 13.84887412 | F88: 14 | G88: -0.001745874663 | H88: 0.001745874663
B89: 1.1 | C89: 0.0953101798 | D89: 37 | E89: 22.4425745 | F89: 22.25021142 | G89: 0.09753244518 | H89: -0.00222226538
B90: 1.2 | C90: 0.1823215568 | D90: 46 | E90: 29.74673753 | F90: 29.78206435 | G90: 0.1819134453 | H90: 0.0004081114795
B91: 1.3 | C91: 0.2623642645 | D91: 55 | E91: 36.52276731 | F91: 36.7106974 | G91: 0.2601932109 | H91: 0.002171053526
B92: 1.4 | C92: 0.3364722366 | D92: 64 | E92: 42.93747896 | F92: 43.12560963 | G92: 0.3342988659 | H92: 0.002173370765
B93: 1.5 | C93: 0.4054651081 | D93: 73 | E93: 49.03115155 | F93: 49.09775004 | G93: 0.4046957321 | H93: 0.000769375976
B94: 1.6 | C94: 0.4700036292 | D94: 82 | E94: 54.7954243 | F94: 54.68431431 | G94: 0.4712872222 | H94: -0.001283592953
B95: 1.7 | C95: 0.5306282511 | D95: 91 | E95: 60.1949678 | F95: 59.93208478 | G95: 0.5336651947 | H95: -0.003036943672
B96: 1.8 | C96: 0.5877866649 | D96: 100 | E96: 65.17450984 | F96: 64.87981439 | G96: 0.5911911202 | H96: -0.003404455299
B97: 1.9 | C97: 0.6418538862 | D97: 109 | E97: 69.66097135 | F97: 69.55996511 | G97: 0.643020756 | H97: -0.00116686984
B98: 2 | C98: 0.6931471806 | D98: 118 | E98: 73.56412432 | F98: 74 | G98: 0.6881117473 | H98: 0.005035433298
